Cogmind - Beta 9.3 @@@ ROGUE MODE // 2019.12.31 @ 16:10:31 // Winter2019/RPGLIKE Player: BadAss McGhee Result: Destroyed by P-60 Hacker with Shock Rifle Performance ------------- Evolutions (4) 2000 Regions Visited (7) 1400 Robots Destroyed (51) 255 Value Destroyed (1981) 1981 Prototype IDs (2) 40 Alien Tech Used (0) 0 Bonus (1418) 1418 TOTAL SCORE: 7094 Bonus ------- High Alert Combat Kills 337 Follower Combat Kills 420 Entered Garrisons 200 Used RIF Installer 500 Friendly Fire -39 Cogmind --------- Core Integrity 0/800 Matter 230/300 Energy 276/330 System Corruption 0% Temperature Cool (90) Movement Hovering (52) Location -6/Factory Parts ------- > --- POWER (2) -------- Light Deuterium Engine Light Deuterium Engine > --- PROPULSION (3) --- Gravmag System Gravmag System Gravmag System > --- UTILITY (5) ------ Improved Heat Shielding Improved Heat Sink Transmission Jammer Medium Armor Plating System Shield > --- WEAPON (3) ------- Heavy Laser Heavy Laser Heavy Laser > --- INVENTORY (4) ---- Targeting Computer Improved Melee Analysis Suite Relay Coupler [Specialist] (44) Electrolaser Peak State ------------ > --- POWER ------------ Light Deuterium Engine Light Deuterium Engine > --- PROPULSION ------- Gravmag System Gravmag System Gravmag System > --- UTILITY ---------- Improved Heat Shielding Improved Heat Sink Transmission Jammer Medium Armor Plating System Shield > --- WEAPON ----------- Heavy Laser Heavy Laser Heavy Laser > --- INVENTORY -------- Targeting Computer Improved Melee Analysis Suite Relay Coupler [Specialist] Relay Coupler [Hunter] [Rating: 46] Favorites ----------- Power Light Nuclear Core Engine Light Deuterium Engine Power Core Light Nuclear Core Propulsion Xenon Bombardment Thruster Treads Light Treads Hover Unit Gravmag System Flight Unit Xenon Bombardment Thruster Utility Terrain Scanner Device Terrain Scanner Processor Improved Targeting Computer Hackware System Shield Protection Medium Armor Plating Weapon Assault Rifle Energy Gun Beam Rifle Ballistic Gun Assault Rifle Special Weapon Plasma Cutter Build | -11 -10 -9 -8 -8 -8 -8 -6 ------- Run | Scr Mat Mat Mat Sto Gar Rec Fac Slots Evolved 9 | 3 . . 2 . 3 . 1 Power 1 | . . . . . 1 . . Propulsion 2 | 1 . . . . 1 . . Utility 4 | 1 . . 2 . 1 . . Weapon 2 | 1 . . . . . . 1 Parts Attached 52 | 5 6 4 19 5 1 1 11 Power 10 | 1 1 . 5 1 . 1 1 Engine 6 | 1 . . 2 1 . 1 1 Core 4 | . 1 . 3 . . . . Reactor . | . . . . . . . . Propulsion 10 | 2 . 2 2 . . . 4 Treads 4 | 2 . 2 . . . . . Leg . | . . . . . . . . Wheel . | . . . . . . . . Hover 3 | . . . . . . . 3 Flight 3 | . . . 2 . . . 1 Utility 11 | . 3 . 4 2 . . 2 Device 6 | . 2 . 2 1 . . 1 Storage . | . . . . . . . . Processor 1 | . . . 1 . . . . Hackware 1 | . . . . . . . 1 Protection 3 | . 1 . 1 1 . . . Artifact . | . . . . . . . . Weapon 21 | 2 2 2 8 2 1 . 4 Energy Gun 13 | . . 2 5 1 1 . 4 Energy Cannon . | . . . . . . . . Ballistic Gun 6 | 2 1 . 2 1 . . . Ballistic Cannon . | . . . . . . . . Launcher . | . . . . . . . . Special Weapon 2 | . 1 . 1 . . . . Impact Weapon . | . . . . . . . . Slashing Weapon . | . . . . . . . . Piercing Weapon . | . . . . . . . . Special Melee Weapon . | . . . . . . . . Unidentified Prototypes 2 | . . . 1 1 . . . Parts Lost 2 | . . . . . . . 2 Power . | . . . . . . . . Propulsion . | . . . . . . . . Utility 1 | . . . . . . . 1 Weapon 1 | . . . . . . . 1 Highest Loss Streak 2 | . . . . . . . 2 Average Slot Usage (%) 94 | . 96 99 95 88 100 75 90 Engine 4 | . 2 . . 6 11 8 15 Core 7 | . 11 14 11 4 . . . Treads 13 | . 28 28 14 . . . . Flight 10 | . . . 7 22 22 16 17 Device 20 | . 17 14 21 22 33 25 20 Processor 1 | . . . 7 . . . . Protection 10 | . 7 14 10 11 11 8 7 Energy Gun 14 | . . 8 16 22 22 16 18 Ballistic Gun 8 | . 28 19 2 . . . . Naked Turns . | . . . . . . . . Heaviest Build 32 | 9 17 19 28 21 21 21 32 Greatest Support 58 | 40 40 46 46 24 24 24 58 Greatest Overweight (x) 2 | 2 . . 1 . . . . Average Overweight (x) . | . . . . . . . . Largest Inventory Capacity 4 | 2 2 2 3 3 4 4 4 Average Capacity 2 | 2 2 2 2 3 3 4 4 Most Carried 4 | . 2 2 3 3 3 4 4 Average Carried 2 | . 1 2 2 1 2 3 3 Final Capacity 4 | 2 2 2 3 3 4 4 4 Final Carried 4 | . 2 2 2 3 3 4 4 Class Distribution -------------------- 81% | Mutant 15% | Commander-Mutant 3% | Skirmisher Dominant Class ---------------- Mutant | -10/Materials Mutant | -9/Materials Mutant | -8/Materials Commander-Mutant | -8/Storage Mutant | -8/Garrison Mutant | -8/Recycling Mutant | -6/Factory Resources | -11 -10 -9 -8 -8 -8 -8 -6 ----------- Run | Scr Mat Mat Mat Sto Gar Rec Fac Matter Collected 784 | 225 47 180 202 70 10 20 30 Remotely . | . . . . . . . . Salvage Created 1288 | . 47 58 386 81 530 29 157 Parts 92 | . 7 16 30 4 30 1 4 Haulers Intercepted . | . . . . . . . . Recyclers Shooed 1 | . . . . . . . 1 Parts Field Recycled . | . . . . . . . . Retrieved Matter . | . . . . . . . . Parts Self-Destructed . | . . . . . . . . Prevented . | . . . . . . . . Kills | -11 -10 -9 -8 -8 -8 -8 -6 ------- Run | Scr Mat Mat Mat Sto Gar Rec Fac Combat Hostiles Destroyed 47 | . 2 8 10 2 20 2 3 Guns 44 | . 2 8 8 2 19 2 3 Classes Destroyed 11 | . 1 3 3 . 1 1 2 Recycler 1 | . . . 1 . . . . Operator 2 | . . . 1 1 . . . Drone 2 | . . . . . . 2 . Watcher 1 | . . 1 . . . . . Swarmer 11 | . . 3 . . 7 . 1 Grunt 22 | . 2 1 7 2 10 . . Brawler 1 | . . . . . 1 . . Duelist 1 | . . . 1 . . . . Sentry 8 | . . 4 2 . 2 . . Hunter 1 | . . . . . . . 1 Behemoth 1 | . . . . . . . 1 Best Kill Streak 13 | . 2 3 6 1 13 2 1 Combat Bots Only 13 | . 2 3 4 1 13 2 1 Max Kills in Single Turn 2 | . 1 1 1 1 2 1 1 Gunslinging 1 | . . . . . 1 . . Exploded . | . . . . . . . . Melee . | . . . . . . . . Uniques/NPCs Destroyed . | . . . . . . . . Combat | -11 -10 -9 -8 -8 -8 -8 -6 -------- Run | Scr Mat Mat Mat Sto Gar Rec Fac Damage Taken 3005 | . 51 240 680 164 835 . 1035 Core 2463 | . 43 199 557 137 677 . 850 Absorbed by Shields 64 | . . . . . 64 . . Redirected to Core 1905 | . 28 139 435 96 531 . 676 Core Remaining (%) 99 | 100 100 98 . . . 100 . Volleys Fired 178 | . 5 21 47 11 50 9 35 Largest 3 | . 2 2 2 2 2 2 3 Hottest 207 | . 40 112 119 119 128 128 207 Shots Fired 331 | . 10 42 67 22 100 17 73 Gun 331 | . 10 42 67 22 100 17 73 Cannon . | . . . . . . . . Launcher . | . . . . . . . . Special . | . . . . . . . . Kinetic 48 | . 10 24 14 . . . . Thermal 283 | . . 18 53 22 100 17 73 Explosive . | . . . . . . . . Electromagnetic . | . . . . . . . . Robot Hit Streak 40 | . 7 11 28 14 40 5 29 Robot Miss Streak 7 | . 2 3 1 1 2 7 1 Penetration Max . | . . . . . . . . Secondary Targets 11 | . 1 . 1 . 8 . 1 Max Gunslinging Chain 1 | . 1 . 1 . 1 . 1 Shots Hit Robots 270 | . 7 29 58 19 85 6 66 Core Hits 100 | . 5 14 25 9 34 2 11 Critical Hits . | . . . . . . . . Critical Kills . | . . . . . . . . Critical Parts Destroyed . | . . . . . . . . Melee Attacks . | . . . . . . . . Impact . | . . . . . . . . Slashing . | . . . . . . . . Piercing . | . . . . . . . . Sneak Attacks . | . . . . . . . . Combat Hostiles . | . . . . . . . . Follow-up Attacks . | . . . . . . . . Damage Inflicted 4282 | . 85 425 925 265 1398 97 1087 Guns 4282 | . 85 425 925 265 1398 97 1087 Cannons . | . . . . . . . . Explosions . | . . . . . . . . Melee . | . . . . . . . . Ramming . | . . . . . . . . Kinetic 505 | . 85 220 200 . . . . Thermal 3777 | . . 205 725 265 1398 97 1087 Explosive . | . . . . . . . . Electromagnetic . | . . . . . . . . Impact . | . . . . . . . . Slashing . | . . . . . . . . Piercing . | . . . . . . . . Highest Corruption . | . . . . . . . . Average Corruption . | . . . . . . . . Corruption Purged . | . . . . . . . . Overload Shots . | . . . . . . . . Overflow Damage . | . . . . . . . . Projectiles . | . . . . . . . . Explosions . | . . . . . . . . Melee . | . . . . . . . . Knockbacks . | . . . . . . . . Impact . | . . . . . . . . Kinetic . | . . . . . . . . Secondary . | . . . . . . . . Self-Inflicted Damage . | . . . . . . . . Shots . | . . . . . . . . Rammed . | . . . . . . . . Targets Rammed . | . . . . . . . . Kicked . | . . . . . . . . Crushed . | . . . . . . . . Highest Temperature 439 | . 8 368 439 38 29 . 324 Average Temperature 122 | . 3 142 181 12 12 . 122 Received Heat Transfer 945 | . 30 39 324 72 372 . 108 Effects 14 | . . 1 10 . . . 3 Shutdowns 2 | . . . 1 . . . 1 Interference 9 | . . . 9 . . . . Short Circuit 1 | . . . . . . . 1 Damage (minor) 2 | . . 1 . . . . 1 Siege Activations . | . . . . . . . . Robots Corrupted . | . . . . . . . . Combat Hostiles . | . . . . . . . . Parts Fried . | . . . . . . . . Impact Corruptions . | . . . . . . . . Robots Melted 3 | . . . 2 . 1 . . Combat Hostiles 3 | . . . 2 . 1 . . Parts Melted 17 | . . 2 1 . 13 . 1 Heat Transferred 8713 | . . 518 1665 666 3237 222 2405 Parts Sabotaged . | . . . . . . . . Parts Stolen . | . . . . . . . . Parts Stripped . | . . . . . . . . Power Chain Reactions . | . . . . . . . . Missiles Intercepted . | . . . . . . . . Alert | -11 -10 -9 -8 -8 -8 -8 -6 ------- Run | Scr Mat Mat Mat Sto Gar Rec Fac Peak Influence 1034 | . 85 197 222 649 1034 465 899 Average Influence 288 | . 62 104 106 232 692 334 846 Maximum Alert Level 3 | . . . 1 2 3 2 3 Low Security (%) 63 | 100 100 100 94 53 . . . Level 1 8 | . . . 5 26 . 97 . Level 2 11 | . . . . 20 60 3 . Level 3 16 | . . . . . 39 . 100 Level 4 . | . . . . . . . . Level 5 . | . . . . . . . . High Security . | . . . . . . . . Max Security . | . . . . . . . . Squads Dispatched 4 | . . . . 2 . . 2 Investigation . | . . . . . . . . Extermination 1 | . . . . . . . 1 Reinforcement 3 | . . . . 2 . . 1 Assault . | . . . . . . . . Garrison . | . . . . . . . . Intercept . | . . . . . . . . Construction Impeded . | . . . . . . . . Haulers Reinforced . | . . . . . . . . Stealth | -11 -10 -9 -8 -8 -8 -8 -6 --------- Run | Scr Mat Mat Mat Sto Gar Rec Fac Distress Signals 2 | . 1 . . . . . 1 Communications Jammed 11 | . . . . . . . 11 Distress Signals 11 | . . . . . . . 11 Times Spotted 80 | . 5 12 14 14 20 3 12 Peak Tracking Total 7 | . 3 4 3 6 7 2 7 Tactical Retreats 3 | . 1 1 . . . . 1 Traps | -11 -10 -9 -8 -8 -8 -8 -6 ------- Run | Scr Mat Mat Mat Sto Gar Rec Fac Traps Triggered 4 | . . . 1 . 3 . . Indirectly . | . . . . . . . . Trap Hack Attempts . | . . . . . . . . Triggered . | . . . . . . . . Disarmed . | . . . . . . . . Reprogrammed . | . . . . . . . . Reused . | . . . . . . . . Traps Extracted . | . . . . . . . . Installed . | . . . . . . . . Triggered . | . . . . . . . . Machines | -11 -10 -9 -8 -8 -8 -8 -6 ---------- Run | Scr Mat Mat Mat Sto Gar Rec Fac Machines Disabled 1 | . . . . . 1 . . Max in Single Turn 1 | . . . . . 1 . . Garrison Relay 1 | . . . . . 1 . . Machines Sabotaged . | . . . . . . . . Garrisons Compromised . | . . . . . . . . Overloaded Fab Kills . | . . . . . . . . Fab Network Shutdowns . | . . . . . . . . Hacking | -11 -10 -9 -8 -8 -8 -8 -6 --------- Run | Scr Mat Mat Mat Sto Gar Rec Fac Machines Accessed 7 | . 1 . 2 2 . 1 1 Terminals 5 | . 1 . 2 1 . 1 . Fabricators 1 | . . . . . . . 1 Repair Stations . | . . . . . . . . Recycling Units . | . . . . . . . . Scanalyzers . | . . . . . . . . Garrison Access 1 | . . . . 1 . . . Total Hacks 10 | . 2 . 2 2 . 3 1 Successful 8 | . 2 . 2 2 . 1 1 Failed 2 | . . . . . . 2 . Catastrophic 2 | . . . . . . 2 . Database Lockouts . | . . . . . . . . Manual 1 | . . . 1 . . . . Terminals 8 | . 2 . 2 1 . 3 . Fabricators 1 | . . . . . . . 1 Repair Stations . | . . . . . . . . Recycling Units . | . . . . . . . . Scanalyzers . | . . . . . . . . Garrison Access 1 | . . . . 1 . . . Terminal Hacks 6 | . 2 . 2 1 . 1 . Record 2 | . 2 . . . . . . Robot Analysis 1 | . . . . 1 . . . Unreport Threat 2 | . . . 1 . . 1 . Hauler Manifests 1 | . . . 1 . . . . Fabricator Hacks 1 | . . . . . . . 1 Network Status 1 | . . . . . . . 1 Repair Station Hacks . | . . . . . . . . Recycling Unit Hacks . | . . . . . . . . Scanalyzer . | . . . . . . . . Garrison Access Hacks 1 | . . . . 1 . . . Unlock Access 1 | . . . . 1 . . . Unauthorized Hacks . | . . . . . . . . Terminals . | . . . . . . . . Fabricators . | . . . . . . . . Repair Stations . | . . . . . . . . Recycling Units . | . . . . . . . . Scanalyzers . | . . . . . . . . Garrison Access . | . . . . . . . . Data Cores Recovered 1 | . . . 1 . . . . Used 1 | . . . 1 . . . . Hacking Detections 4 | . 1 . . 2 . 1 . Full Trace Events 1 | . . . . . . 1 . Feedback Events . | . . . . . . . . Feedback Blocked . | . . . . . . . . Robot Schematics Acquired . | . . . . . . . . Robots Built . | . . . . . . . . Matter . | . . . . . . . . Time . | . . . . . . . . Total Robot Build Rating . | . . . . . . . . Part Schematics Acquired . | . . . . . . . . Parts Built . | . . . . . . . . Matter . | . . . . . . . . Time . | . . . . . . . . Total Part Build Rating . | . . . . . . . . Parts Repaired . | . . . . . . . . Time . | . . . . . . . . Parts Recycled . | . . . . . . . . Recycled Matter . | . . . . . . . . Retrieved Matter . | . . . . . . . . Retrieved Components . | . . . . . . . . Parts Scanalyzed . | . . . . . . . . Part Schematics Acquired . | . . . . . . . . Parts Damaged . | . . . . . . . . Bothacking | -11 -10 -9 -8 -8 -8 -8 -6 ------------ Run | Scr Mat Mat Mat Sto Gar Rec Fac Used RIF Installer 1 | . . . . . 1 . . Robots Hacked . | . . . . . . . . Non-combat . | . . . . . . . . Combat . | . . . . . . . . Robot Hacks Applied . | . . . . . . . . Relay Couplers Released 2 | . . . . . 2 . . Machine Destruction 2 | . . . . . 2 . . Robots Rewired . | . . . . . . . . Allies Hacked . | . . . . . . . . Hacks Repelled . | . . . . . . . . Allies | -11 -10 -9 -8 -8 -8 -8 -6 -------- Run | Scr Mat Mat Mat Sto Gar Rec Fac Total Allies 11 | . . . . 11 . . . Largest Group 11 | . . . . 11 . . . Highest-Rated Group 272 | . . . . 272 . . . Highest-Rated Ally 99 | . . . . 99 . . . Total Orders . | . . . . . . . . Ally Attacks 45 | . . . . 45 . . . Total Damage 803 | . . . . 803 . . . Kills 12 | . . . . 12 . . . Allies Corrupted . | . . . . . . . . Allies Melted . | . . . . . . . . Intel | -11 -10 -9 -8 -8 -8 -8 -6 ------- Run | Scr Mat Mat Mat Sto Gar Rec Fac Robot Analysis Total 1 | . . . . 1 . . . Derelict Logs Recovered . | . . . . . . . . Drone Launches . | . . . . . . . . Drone Recoveries . | . . . . . . . . Exploration | -11 -10 -9 -8 -8 -8 -8 -6 ------------- Run | Scr Mat Mat Mat Sto Gar Rec Fac Turns Passed 2476 | 53 336 538 473 359 332 100 285 Spaces Moved 1821 | 31 176 271 251 349 185 195 363 Core 10 | 9 . . . . . . 1 Treads 605 | 22 176 271 136 . . . . Legs . | . . . . . . . . Wheels . | . . . . . . . . Hover 36 | . . . . . . . 36 Flight 1170 | . . . 115 349 185 195 326 Fastest Speed 34 | 50 160 160 37 37 37 37 34 Average Speed 78 | 149 160 160 104 37 37 37 38 Slowest Speed 160 | 160 160 160 160 37 37 37 60 Overloaded Moves . | . . . . . . . . Propulsion Burnouts . | . . . . . . . . Robots Hopped 6 | . . . 2 2 . . 2 Cave-ins Triggered . | . . . . . . . . Exploration Rate (%) 28 | 3 32 27 27 40 35 53 10 Regions Visited 7 Branch Regions 2 Pre-discovered Areas . | . . . . . . . . Known Exits Taken 1 | . . . . 1 . . . Unknown Exits Taken 5 | 1 1 1 1 . . 1 . Scrap Searched . | . . . . . . . . Spaces Dug . | . . . . . . . . Terrain Destroyed . | . . . . . . . . Melee . | . . . . . . . . Projectile . | . . . . . . . . AOE . | . . . . . . . . Actions | -11 -10 -9 -8 -8 -8 -8 -6 --------- Run | Scr Mat Mat Mat Sto Gar Rec Fac Total 2525 | 35 219 334 388 553 349 205 442 Wait 315 | . 27 23 33 176 32 . 24 Move 1803 | 30 175 270 246 345 184 194 359 Hop 6 | . . . 2 2 . . 2 Pick Up 10 | . 2 . 1 2 2 . 3 Fast Attach 36 | 5 4 4 11 2 . 1 9 Attach 4 | . . . 1 1 . . 2 Detach 2 | . . . 1 . . 1 . Swap 12 | . 2 . 7 2 1 . . Drop 27 | . 2 4 11 1 3 . 6 Fire 178 | . 5 21 47 11 50 9 35 Melee . | . . . . . . . . Ram . | . . . . . . . . Kick . | . . . . . . . . Crush . | . . . . . . . . Escape Stasis 42 | . . . . . 42 . . Rewire . | . . . . . . . . Trap . | . . . . . . . . Miscellaneous 90 | . 2 12 28 11 35 . 2 Route ------- -11/Scrapyard -10/Materials -9/Materials -8/Materials -8/Storage -8/Garrison -8/Recycling -6/Factory History --------- Turn | Location | Event 1 | -11/Scrapyard | Upgraded with Propulsion slot (x1) 1 | -11/Scrapyard | Upgraded with Utility slot (x1) 1 | -11/Scrapyard | Upgraded with Weapon slot (x1) 12 | -11/Scrapyard | Discovered new exit (range 15) 54 | -11/Scrapyard | Entered Materials 296 | -10/Materials | Discovered new exit (range 17) 312 | -10/Materials | Build established: Mutant 390 | -10/Materials | Entered another Materials area 392 | -9/Materials | Reached level 2 924 | -9/Materials | Discovered new exit (range 4) 928 | -9/Materials | Entered another Materials area 930 | -8/Materials | Reached level 3 933 | -8/Materials | Upgraded with Utility slot (x2) 1115 | -8/Materials | Reached level 4 1144 | -8/Materials | Core integrity fell below 50% 1304 | -8/Materials | Discovered new exit (range 13) 1401 | -8/Materials | Entered Storage 1403 | -8/Storage | Reached level 5 1409 | -8/Storage | Assisted by bots powering up and referring to "LRC-V3" 1429 | -8/Storage | Met 01-MTF 1682 | -8/Storage | Reached level 6 1683 | -8/Storage | Build established: Commander-Mutant 1703 | -8/Storage | Reached level 7 1760 | -8/Storage | Identified exit to Garrison 1760 | -8/Storage | Entered Garrison 1792 | -8/Garrison | Garrison Relay disabled 1792 | -8/Garrison | Reached level 8 1804 | -8/Garrison | Triggered checkpoint 1888 | -8/Garrison | Triggered checkpoint 1971 | -8/Garrison | Reached level 9 1982 | -8/Garrison | Triggered checkpoint 1986 | -8/Garrison | Triggered checkpoint 2021 | -8/Garrison | Discovered new exit (range 16) 2025 | -8/Garrison | Destroyed 13 combat bots 2028 | -8/Garrison | Triggered checkpoint 2059 | -8/Garrison | Build established: Mutant 2091 | -8/Garrison | Installed Relay Interface Framework 2091 | -8/Garrison | Upgraded with Power slot (x1) 2091 | -8/Garrison | Upgraded with Propulsion slot (x1) 2091 | -8/Garrison | Upgraded with Utility slot (x1) 2092 | -8/Garrison | Entered Recycling 2094 | -8/Recycling | Reached level 10 2128 | -8/Recycling | Spotter reported a threat 2143 | -8/Recycling | Spotter reported a threat 2152 | -8/Recycling | Spotter reported a threat 2169 | -8/Recycling | Spotter reported a threat 2178 | -8/Recycling | Discovered new exit (range 14) 2192 | -8/Recycling | Entered Factory 2194 | -6/Factory | Reached level 11 2194 | -6/Factory | Upgraded with Weapon slot (x1) 2310 | -6/Factory | Spotted B-75 Beast 2360 | -6/Factory | Core integrity fell below 50% 2385 | -6/Factory | Core integrity fell below 20% 2425 | -6/Factory | Destroyed B-75 Beast 2477 | -6/Factory | Destroyed by P-60 Hacker with Shock Rifle Last Messages --------------- 02432_ Acquired 30 matter. 02438_ Dropped Broken Xenon Bombardment Thruster. 02439_ Acquired Gravmag System. 02441_ Dropped Xenon Bombardment Thruster. 02441_ Acquired Gravmag System. 02442_ ALERT: Rogue bot located, Programmers report to Factory Zone 5O. 02443_ Dropped Xenon Bombardment Thruster. 02444_ R-10 Processor collects Broken Xenon Bombardment Thruster. 02444_ Acquired Gravmag System. 02446_ R-10 Processor collects Xenon Bombardment Thruster. 02446_ Acquired Imp. Heat Shielding. 02446_ R-10 Processor collects Xenon Bombardment Thruster. 02451_ Acquired Hvy. Laser. 02452_ Dropped Particle Gun. 02454_ Acquired Hvy. Laser. 02456_ R-10 Processor collects Particle Gun. 02458_ Connecting with Fabricator... 02459_ K-01 Serf cleans the Matter Pump. 02464_ Dropped Relay Coupler [Hunter]. 02465_ Acquired Electrolaser. Map ----- +----------------------------------------------------+ | ?????????????????????????????????????????????????? | | ?????????????????????????????????????????????????? | | ?????????????????????????????????????????????????? | | ?????????????????????????????????????????????????? | | ?????????????????????????????????????????????????? | | ?????????????????????????????????????????????????? | | ?????????????????????????????????????????????????? | | ?????????????????????????????????????????????????? | | ?????????????????????????????????????????????????? | | ?????????????????????????????????????????????????? | | ?????????????????????????????????????????????????? | | ?????????????????????????????????????????????????? | | ?????????????????????????????????????????????????? | | ?????????????????????????????????????????????????? | | ??????#??????????????????????????????????????????? | | ??????# ?????????????????????????????????????????? | | ??????# ######+#+##########??????????????????????? | | ??????# # #??????????????????????? | | ??????# ^ # """ #??????????????????????? | | ??????# """! + "Y" #??????????????????????? | | ??????# """ # " " #??????????????????????? | | ??????# """ # #??????????????????????? | | ????????### """ # #?????????????#????????? | | ??????????# #"""" #????????? #????????? | | ?# #????### ! #"""" #????? #????????? | | ?# ###### #"""" @## #????????? | | ?# #"""" p #????????? | | ?# #"""" ## #????????? | | ?# """ """ "" #"""" #?? #????????? | | # """ """[""" # #??? #??#####????????? | | ## """ """ [F" ###+##### ??? #???????????????? | | [ """ ???#???????????????? | | """ """ "" ???????????????????? | | """ """ ???????????????????? | | """ """ / ???????????????????? | | ???????????????????? | | ###+######????????????????????? | | #?????????????????????????????? | | !! !! #?????????????????????????????? | | !! !!! #?????????????????????????????? | | ! ! !!! #?????????????????????????????? | | #?????????????????????????????? | | #?????????????????????????????? | | ######### ### #?????????????????????????????? | | ######## #?? #?????????????????????????????? | | ###########?? #?????????????????????????????? | | ####?###?#??? #?????????????????????????????? | | ############?? #?????????????????????????????? | | #?? #?????????????????????????????? | | #?? ?????????????????????????????? | +----------------------------------------------------+ Best States ------------- Heat Dissipation 57 Energy Generation 38 Energy Capacity 330 Matter Stores 300 Matter Capacity 300 Sight Range 17 Robot Scan Range 4 Terrain Scan Range 14 Terrain Scan Density 310 ECM Strength 2 Jamming Range 8 Heat Shielding 100 Armor Coverage 450 Evasion (%) 63 Targeting Accuracy 6 Recoil Reduction 2 Defensive Hacking 10 Item Schematics ----------------- None Robot Schematics ------------------ None Fabricated ------------ Nothing Alien Tech Used ----------------- None Achievements -------------- Total Silence Challenges ------------ None RPGLIKE | -11 -10 -9 -8 -8 -8 -8 -6 --------- Run | Scr Mat Mat Mat Sto Gar Rec Fac Levels Raised 10 | . . 1 2 3 2 1 1 XP Earned 19077 | 3000 250 2585 2700 4169 3363 1070 1940 XP Spent 17930 | 2750 . . 4750 2940 4500 . 2990 Upgrades 43 | 7 . . 15 10 5 . 6 Power Slot 1 | . . . . . 1 . . Propulsion Slot 2 | 1 . . . . 1 . . Utility Slot 4 | 1 . . 2 . 1 . . Weapon Slot 2 | 1 . . . . . . 1 Core Integrity 4 | . . . 3 1 . . . Heat Dissipation 3 | . . . 1 2 . . . Energy Generation 3 | . . . 2 1 . . . Energy Storage 3 | . . . 2 1 . . . Mass Support 5 | . . . . 2 . . 3 Inventory Capacity 4 | 2 . . 1 . 1 . . Sight Range 1 | 1 . . . . . . . Sensor Range 2 | . . . 1 1 . . . Terrain Scan Density 3 | . . . 2 . . . 1 Ranged Accuracy 6 | 1 . . 1 2 1 . 1 Protomatter Created 1109 | . 45 280 323 50 396 . 15 Integrity Restored 1834 | . 43 213 617 210 706 . 45 Core 1658 | . 43 187 569 137 677 . 45 Parts 176 | . . 26 48 73 29 . . Protomatter Decayed 549 | . 30 206 113 91 109 . . Game ------ Seed PlasmaMicroShotgun Manual? 0 Play Time 00:48:11 Cumulative 66.0 hours Start 2019.12.31 @ 13:30:47 End 2019.12.31 @ 16:10:31 Sessions 1 Manual Loads 0 Difficulty Rogue Special Mode Winter2019/RPGLIKE Game No. 79 Rogue 79 Adventurer 0 Explorer 0 Win Type - Total 0 Types 0/0/0/0/0/0/0 Lore% 11 Gallery% 30 Achievement% 20 Wizard Run 0 Options --------- ASCII 0 Keyboard 0 Movement Mouse Keybinds 0 Fullscreen 1 Font 18/SmallcapsGlow Map View 76x50 Tactical HUD 1 Map Filters NONE Filters NONE Steam 1 RUN: ab84fa2d-50e7-4040-85ee-d95d6516e6a3